[Event "*** Titled Tuesday Blitz"]
[Site "Chess.com"]
[Date "2020.04.14"]
[Round "5"]
[White "vovkcoach"]
[Black "druskacik"]
[Result "1-0"]
[WhiteElo "2767"]
[BlackElo "2589"]
[TimeControl "180+1"]
[EndTime "10:50:49 PDT"]
[Termination "vovkcoach won by resignation"]

1. e4 {[%clk 0:03:00.2]} 1... c5 {[%clk 0:02:58.1]} 2. Nf3 {[%clk 0:03:00.4]}
2... Nc6 {[%clk 0:02:58.6]} 3. Bb5 {[%clk 0:03:00.1]} 3... g6 {[%clk 0:02:58.4]}
4. Bxc6 {[%clk 0:03:00]} 4... dxc6 {[%clk 0:02:57.7]} 5. d3 {[%clk 0:03:00.9]}
5... Bg7 {[%clk 0:02:56.9]} 6. h3 {[%clk 0:03:01.4]} 6... Nf6 {[%clk 0:02:55.9]}
7. O-O {[%clk 0:02:59]} 7... Nd7 {[%clk 0:02:54.3]} 8. Re1 {[%clk 0:02:56.7]}
8... e5 {[%clk 0:02:50.6]} 9. a3 {[%clk 0:02:56.2]} 9... a5 {[%clk 0:02:33]} 10.
Nbd2 {[%clk 0:02:53.9]} 10... Qe7 {[%clk 0:02:19.3]} 11. Nc4 {[%clk 0:02:42.6]}
11... b5 {[%clk 0:02:14.4]} 12. Ne3 {[%clk 0:02:42.9]} 12... Nf8 {[%clk
0:02:08.2]} 13. a4 {[%clk 0:02:42.8]} 13... b4 {[%clk 0:01:58.8]} 14. Nc4 {[%clk
0:02:41.5]} 14... f6 {[%clk 0:01:55.6]} 15. Nb6 {[%clk 0:02:33.3]} 15... Rb8
{[%clk 0:01:55]} 16. Nxc8 {[%clk 0:02:33.9]} 16... Rxc8 {[%clk 0:01:55.9]} 17.
c3 {[%clk 0:02:34.8]} 17... Ne6 {[%clk 0:01:52.3]} 18. Be3 {[%clk 0:02:33.6]}
18... O-O {[%clk 0:01:44.5]} 19. Nd2 {[%clk 0:02:33.2]} 19... f5 {[%clk
0:01:31.1]} 20. exf5 {[%clk 0:02:33]} 20... gxf5 {[%clk 0:01:29.8]} 21. Nc4
{[%clk 0:02:33.4]} 21... Qc7 {[%clk 0:01:20.4]} 22. Qb3 {[%clk 0:02:28.3]} 22...
Kh8 {[%clk 0:01:14.6]} 23. Nxa5 {[%clk 0:02:27.2]} 23... Qxa5 {[%clk 0:01:09.9]}
24. Qxe6 {[%clk 0:02:26.1]} 24... bxc3 {[%clk 0:01:09.7]} 25. bxc3 {[%clk
0:02:27]} 25... Qxc3 {[%clk 0:01:06.6]} 26. Rac1 {[%clk 0:02:17.3]} 26... Qxd3
{[%clk 0:01:03.2]} 27. Bxc5 {[%clk 0:02:12.1]} 27... Rfe8 {[%clk 0:01:01.1]} 28.
Qf7 {[%clk 0:02:10.4]} 28... Qd5 {[%clk 0:00:42.8]} 29. Qxf5 {[%clk 0:02:07.6]}
29... e4 {[%clk 0:00:43.4]} 30. Qg4 {[%clk 0:02:04.2]} 30... Bb2 {[%clk
0:00:30.7]} 31. Rc2 {[%clk 0:01:58.4]} 31... Qb3 {[%clk 0:00:09.1]} 32. Rxb2
{[%clk 0:01:41.2]} 32... Qxb2 {[%clk 0:00:08.4]} 33. Rd1 {[%clk 0:01:41.5]}
33... Rcd8 {[%clk 0:00:07.4]} 34. Rd7 {[%clk 0:01:32.6]} 34... Rxd7 {[%clk
0:00:07.1]} 35. Qxd7 {[%clk 0:01:32]} 35... Qa1+ {[%clk 0:00:08]} 36. Kh2 {[%clk
0:01:32.3]} 36... Qe5+ {[%clk 0:00:08.9]} 37. g3 {[%clk 0:01:32.8]} 37... Qxc5
{[%clk 0:00:09]} 38. Qxe8+ {[%clk 0:01:32.8]} 38... Kg7 {[%clk 0:00:09.9]} 39.
Qd7+ {[%clk 0:01:28.5]} 39... Kf6 {[%clk 0:00:09.7]} 40. Qd2 {[%clk 0:01:27.6]}
40... Qd5 {[%clk 0:00:08.4]} 41. Qxd5 {[%clk 0:01:22.9]} 41... cxd5 {[%clk
0:00:09.3]} 42. a5 {[%clk 0:01:23.8]} 42... d4 {[%clk 0:00:09.8]} 43. Kg2 {[%clk
0:01:06.8]} 43... d3 {[%clk 0:00:09.6]} 44. Kf1 {[%clk 0:01:07]} 44... Ke5
{[%clk 0:00:10.1]} 45. a6 {[%clk 0:01:06.5]} 1-0

[Event "*** Titled Tuesday Blitz"]
[Site "Chess.com"]
[Date "2020.04.14"]
[Round "5"]
[White "pichonazo"]
[Black "maxip32"]
[Result "1-0"]
[WhiteElo "2661"]
[BlackElo "2421"]
[TimeControl "180+1"]
[EndTime "10:50:49 PDT"]
[Termination "pichonazo won on time"]

1. e4 {[%clk 0:03:00.9]} 1... c5 {[%clk 0:02:59.5]} 2. c3 {[%clk 0:02:59.9]}
2... Nf6 {[%clk 0:02:59]} 3. e5 {[%clk 0:02:59.1]} 3... Nd5 {[%clk 0:02:58.8]}
4. Nf3 {[%clk 0:02:58.8]} 4... Nc6 {[%clk 0:02:58.4]} 5. Bc4 {[%clk 0:02:58.7]}
5... Nb6 {[%clk 0:02:57.9]} 6. Bb3 {[%clk 0:02:58.1]} 6... d5 {[%clk 0:02:51.2]}
7. exd6 {[%clk 0:02:56.5]} 7... Qxd6 {[%clk 0:02:51]} 8. O-O {[%clk 0:02:56.2]}
8... e6 {[%clk 0:02:48.6]} 9. d4 {[%clk 0:02:53.3]} 9... cxd4 {[%clk 0:02:46.8]}
10. cxd4 {[%clk 0:02:47.9]} 10... Be7 {[%clk 0:02:46.9]} 11. Nc3 {[%clk
0:02:47.8]} 11... a6 {[%clk 0:02:21.1]} 12. Re1 {[%clk 0:02:46.1]} 12... O-O
{[%clk 0:02:20.1]} 13. Ne4 {[%clk 0:02:41.4]} 13... Qd8 {[%clk 0:02:16.6]} 14.
a3 {[%clk 0:02:38.8]} 14... Nd5 {[%clk 0:02:14.7]} 15. Qe2 {[%clk 0:02:34]}
15... Nf6 {[%clk 0:02:11.7]} 16. Nxf6+ {[%clk 0:02:18.2]} 16... Bxf6 {[%clk
0:02:12.6]} 17. Be3 {[%clk 0:02:15.3]} 17... b6 {[%clk 0:02:04]} 18. Red1 {[%clk
0:02:11.3]} 18... Ne7 {[%clk 0:02:03.2]} 19. Ne5 {[%clk 0:02:04.6]} 19... Bb7
{[%clk 0:01:51.4]} 20. Qg4 {[%clk 0:02:03]} 20... Nd5 {[%clk 0:01:42.1]} 21. Qg3
{[%clk 0:01:39.8]} 21... Nxe3 {[%clk 0:01:27.9]} 22. Qxe3 {[%clk 0:01:38.5]}
22... Bg5 {[%clk 0:01:03]} 23. Qe2 {[%clk 0:01:28.5]} 23... Rc8 {[%clk
0:00:51.5]} 24. Nxf7 {[%clk 0:01:22.4]} 24... Rxf7 {[%clk 0:00:50.9]} 25. Qxe6
{[%clk 0:01:21.9]} 25... Rc7 {[%clk 0:00:41.4]} 26. Qe5 {[%clk 0:00:56.1]} 26...
Re7 {[%clk 0:00:19.9]} 27. Qxg5 {[%clk 0:00:45.2]} 27... h6 {[%clk 0:00:15.4]}
28. Bxf7+ {[%clk 0:00:42.1]} 28... Kxf7 {[%clk 0:00:14.4]} 29. Qf4+ {[%clk
0:00:40.9]} 29... Kg8 {[%clk 0:00:13.5]} 30. Re1 {[%clk 0:00:40.5]} 30... Qd5
{[%clk 0:00:11.3]} 31. f3 {[%clk 0:00:38]} 31... Rf7 {[%clk 0:00:11.5]} 32. Qe4
{[%clk 0:00:35.6]} 32... Qc4 {[%clk 0:00:02.2]} 33. Qe3 {[%clk 0:00:31.3]} 33...
Bd5 {[%clk 0:00:01.5]} 34. Rac1 {[%clk 0:00:30.1]} 34... Qa2 {[%clk 0:00:01.7]}
35. Re2 {[%clk 0:00:22.9]} 1-0

[Event "*** Titled Tuesday Blitz"]
[Site "Chess.com"]
[Date "2020.04.14"]
[Round "5"]
[White "DanielDardha2005"]
[Black "AvitalBor"]
[Result "0-1"]
[WhiteElo "2574"]
[BlackElo "2745"]
[TimeControl "180+1"]
[EndTime "10:50:51 PDT"]
[Termination "AvitalBor won by resignation"]

1. Nf3 {[%clk 0:02:59]} 1... d5 {[%clk 0:02:59.1]} 2. c4 {[%clk 0:02:58.1]} 2...
dxc4 {[%clk 0:02:59.1]} 3. e3 {[%clk 0:02:57.2]} 3... a6 {[%clk 0:02:53.7]} 4.
Bxc4 {[%clk 0:02:56.7]} 4... b5 {[%clk 0:02:53.7]} 5. Be2 {[%clk 0:02:51.1]}
5... Bb7 {[%clk 0:02:52.7]} 6. d4 {[%clk 0:02:51.6]} 6... e6 {[%clk 0:02:51.4]}
7. a4 {[%clk 0:02:51.3]} 7... b4 {[%clk 0:02:48.2]} 8. O-O {[%clk 0:02:50.3]}
8... Nf6 {[%clk 0:02:46.9]} 9. Nbd2 {[%clk 0:02:48]} 9... Nbd7 {[%clk
0:02:39.5]} 10. Nc4 {[%clk 0:02:45.9]} 10... a5 {[%clk 0:02:33.3]} 11. b3 {[%clk
0:02:43.5]} 11... Be7 {[%clk 0:02:32.7]} 12. Bb2 {[%clk 0:02:43.2]} 12... O-O
{[%clk 0:02:32.8]} 13. Rc1 {[%clk 0:02:38.7]} 13... c5 {[%clk 0:02:32.9]} 14.
Nfe5 {[%clk 0:02:31.9]} 14... Nxe5 {[%clk 0:02:29]} 15. Nxe5 {[%clk 0:02:32.8]}
15... Rc8 {[%clk 0:02:23.2]} 16. Bf3 {[%clk 0:02:31.8]} 16... Bd5 {[%clk
0:02:13.6]} 17. Nc4 {[%clk 0:02:11.1]} 17... cxd4 {[%clk 0:02:09.1]} 18. Qxd4
{[%clk 0:01:52.5]} 18... Bxf3 {[%clk 0:02:08.2]} 19. Qxd8 {[%clk 0:01:50.2]}
19... Rfxd8 {[%clk 0:02:09.1]} 20. gxf3 {[%clk 0:01:50.7]} 20... Rc5 {[%clk
0:02:01.7]} 21. Rfd1 {[%clk 0:01:50.3]} 21... h5 {[%clk 0:01:35]} 22. Rxd8+
{[%clk 0:01:29.1]} 22... Bxd8 {[%clk 0:01:35.9]} 23. Rd1 {[%clk 0:01:29.3]}
23... Rd5 {[%clk 0:01:35.5]} 24. Rxd5 {[%clk 0:01:13.5]} 24... exd5 {[%clk
0:01:36.4]} 25. Nd6 {[%clk 0:01:09.1]} 25... Nd7 {[%clk 0:01:30]} 26. Nf5 {[%clk
0:00:57.7]} 26... Nc5 {[%clk 0:01:21.4]} 27. Nd4 {[%clk 0:00:41.1]} 27... Bf6
{[%clk 0:01:20.1]} 28. Kf1 {[%clk 0:00:31.5]} 28... Bxd4 {[%clk 0:01:17.8]} 29.
Bxd4 {[%clk 0:00:32.4]} 29... Nxb3 {[%clk 0:01:17.8]} 30. Bb6 {[%clk 0:00:33]}
30... Nd2+ {[%clk 0:01:17.9]} 31. Ke2 {[%clk 0:00:33]} 31... Nc4 {[%clk
0:01:16.2]} 32. Bd4 {[%clk 0:00:33.3]} 32... f5 {[%clk 0:00:56.1]} 33. Kd3
{[%clk 0:00:30.2]} 33... b3 {[%clk 0:00:25.2]} 34. Kc3 {[%clk 0:00:20.2]} 34...
h4 {[%clk 0:00:21.6]} 35. h3 {[%clk 0:00:13.4]} 35... b2 {[%clk 0:00:20.7]} 36.
Kc2 {[%clk 0:00:13.4]} 36... g5 {[%clk 0:00:19.6]} 37. Bxb2 {[%clk 0:00:11.6]}
37... Nxb2 {[%clk 0:00:19.7]} 38. Kxb2 {[%clk 0:00:12.5]} 38... g4 {[%clk
0:00:20.1]} 0-1

[Event "*** Titled Tuesday Blitz"]
[Site "Chess.com"]
[Date "2020.04.14"]
[Round "5"]
[White "IljaJoke"]
[Black "Nikolakis2014"]
[Result "0-1"]
[WhiteElo "2519"]
[BlackElo "2695"]
[TimeControl "180+1"]
[EndTime "10:50:53 PDT"]
[Termination "Nikolakis2014 won by resignation"]

1. d4 {[%clk 0:03:00.9]} 1... Nf6 {[%clk 0:02:57.7]} 2. c4 {[%clk 0:03:00.6]}
2... e6 {[%clk 0:02:53.7]} 3. g3 {[%clk 0:03:00.7]} 3... c5 {[%clk 0:02:52.4]}
4. Nf3 {[%clk 0:03:00.4]} 4... cxd4 {[%clk 0:02:52]} 5. Nxd4 {[%clk 0:03:01.3]}
5... d5 {[%clk 0:02:52.6]} 6. Bg2 {[%clk 0:02:57.8]} 6... e5 {[%clk 0:02:52.8]}
7. Nf3 {[%clk 0:02:48.9]} 7... d4 {[%clk 0:02:52.9]} 8. e3 {[%clk 0:02:42.6]}
8... Nc6 {[%clk 0:02:50.6]} 9. exd4 {[%clk 0:02:39.2]} 9... exd4 {[%clk
0:02:39.4]} 10. O-O {[%clk 0:02:39.3]} 10... Be7 {[%clk 0:02:39.6]} 11. b4
{[%clk 0:02:39.6]} 11... Nxb4 {[%clk 0:02:31.5]} 12. Nxd4 {[%clk 0:02:28.5]}
12... O-O {[%clk 0:02:31]} 13. Be3 {[%clk 0:02:25.6]} 13... Ng4 {[%clk
0:02:25.2]} 14. Nc3 {[%clk 0:02:24.9]} 14... Nxe3 {[%clk 0:02:24.1]} 15. fxe3
{[%clk 0:02:25.8]} 15... Bd7 {[%clk 0:02:08.4]} 16. Bxb7 {[%clk 0:02:10.9]}
16... Rb8 {[%clk 0:02:08.3]} 17. Bg2 {[%clk 0:02:07]} 17... Bc5 {[%clk
0:01:59.2]} 18. Nd5 {[%clk 0:01:58.3]} 18... Qe8 {[%clk 0:01:51.4]} 19. Qd2
{[%clk 0:01:48.5]} 19... Qe5 {[%clk 0:01:49.4]} 20. Rae1 {[%clk 0:01:27.7]}
20... a5 {[%clk 0:01:45.1]} 21. a3 {[%clk 0:01:23.8]} 21... Nxd5 {[%clk
0:01:42]} 22. cxd5 {[%clk 0:01:22.3]} 22... Bxa3 {[%clk 0:01:40.8]} 23. Qd3
{[%clk 0:00:53.9]} 23... Bb4 {[%clk 0:01:39]} 24. Ra1 {[%clk 0:00:45.3]} 24...
Qd6 {[%clk 0:01:35.3]} 25. Nf5 {[%clk 0:00:40.6]} 25... Bxf5 {[%clk 0:01:34.6]}
26. Rxf5 {[%clk 0:00:41.5]} 26... Rfe8 {[%clk 0:01:30.5]} 27. e4 {[%clk
0:00:41.5]} 27... Re7 {[%clk 0:01:30]} 28. Bf3 {[%clk 0:00:29.8]} 28... Rbe8
{[%clk 0:01:28.5]} 29. Kg2 {[%clk 0:00:29.5]} 29... g6 {[%clk 0:01:27.8]} 30.
Rf4 {[%clk 0:00:28.1]} 30... Qe5 {[%clk 0:01:26.8]} 31. Rc1 {[%clk 0:00:26.5]}
31... Bd6 {[%clk 0:01:18.1]} 32. Rc2 {[%clk 0:00:15]} 32... a4 {[%clk
0:01:17.1]} 33. h4 {[%clk 0:00:10.9]} 33... a3 {[%clk 0:01:16.1]} 34. h5 {[%clk
0:00:10.5]} 34... Rb8 {[%clk 0:01:12.8]} 35. hxg6 {[%clk 0:00:09.5]} 35... hxg6
{[%clk 0:01:12.1]} 36. Bg4 {[%clk 0:00:08.2]} 36... Rb2 {[%clk 0:01:09.7]} 37.
Rff2 {[%clk 0:00:07.6]} 37... Rxc2 {[%clk 0:01:02.3]} 38. Rxc2 {[%clk
0:00:08.5]} 38... Qxe4+ {[%clk 0:00:44.6]} 39. Qxe4 {[%clk 0:00:09.4]} 39...
Rxe4 {[%clk 0:00:44.7]} 40. Bf3 {[%clk 0:00:10.3]} 40... Rb4 {[%clk 0:00:44.3]}
41. Ra2 {[%clk 0:00:10.5]} 41... Rb3 {[%clk 0:00:40.4]} 42. g4 {[%clk
0:00:09.6]} 42... Kg7 {[%clk 0:00:40.5]} 43. Kf2 {[%clk 0:00:08.4]} 43... Kf6
{[%clk 0:00:40.7]} 44. Ke2 {[%clk 0:00:07.2]} 44... Bc5 {[%clk 0:00:40.9]} 45.
Be4 {[%clk 0:00:06.6]} 45... Re3+ {[%clk 0:00:40]} 0-1

[Event "*** Titled Tuesday Blitz"]
[Site "Chess.com"]
[Date "2020.04.14"]
[Round "5"]
[White "Kotofeyca"]
[Black "Gentlejimmy7"]
[Result "0-1"]
[WhiteElo "2375"]
[BlackElo "2635"]
[TimeControl "180+1"]
[EndTime "10:50:53 PDT"]
[Termination "Gentlejimmy7 won by checkmate"]

1. d4 {[%clk 0:02:23.6]} 1... Nf6 {[%clk 0:02:59.8]} 2. c4 {[%clk 0:02:23.1]}
2... g6 {[%clk 0:03:00.1]} 3. f3 {[%clk 0:02:23.3]} 3... e6 {[%clk 0:02:58.4]}
4. e4 {[%clk 0:02:22.7]} 4... d5 {[%clk 0:02:58.7]} 5. cxd5 {[%clk 0:02:22]}
5... exd5 {[%clk 0:02:58]} 6. e5 {[%clk 0:02:22.9]} 6... Nh5 {[%clk 0:02:57.8]}
7. g3 {[%clk 0:02:19.3]} 7... c5 {[%clk 0:02:55.6]} 8. Ne2 {[%clk 0:02:11.4]}
8... Nc6 {[%clk 0:02:55.7]} 9. Be3 {[%clk 0:02:10.8]} 9... Ng7 {[%clk
0:02:55.5]} 10. f4 {[%clk 0:02:07.6]} 10... Nf5 {[%clk 0:02:55.2]} 11. Bf2
{[%clk 0:02:07.5]} 11... Qb6 {[%clk 0:02:55.1]} 12. dxc5 {[%clk 0:02:04.8]}
12... Qxb2 {[%clk 0:02:55.1]} 13. Nbc3 {[%clk 0:02:02.1]} 13... d4 {[%clk
0:02:52.8]} 14. Rb1 {[%clk 0:02:00.5]} 14... Qa3 {[%clk 0:02:41.1]} 15. Nb5
{[%clk 0:01:52.3]} 15... Qa5+ {[%clk 0:02:40.8]} 16. Qd2 {[%clk 0:01:52.1]}
16... Qxd2+ {[%clk 0:02:35.4]} 17. Kxd2 {[%clk 0:01:53]} 17... Kd7 {[%clk
0:02:08.9]} 18. Nd6 {[%clk 0:01:48.9]} 18... Bxd6 {[%clk 0:01:52.9]} 19. cxd6
{[%clk 0:01:48.1]} 19... h5 {[%clk 0:01:46.8]} 20. Bh3 {[%clk 0:01:46]} 20... b6
{[%clk 0:01:40.9]} 21. Bxf5+ {[%clk 0:01:41.8]} 21... gxf5 {[%clk 0:01:40.5]}
22. Bxd4 {[%clk 0:01:40.2]} 22... f6 {[%clk 0:01:35.1]} 23. Rhe1 {[%clk
0:01:24.7]} 23... Ba6 {[%clk 0:01:29.1]} 24. Bb2 {[%clk 0:01:21.9]} 24... h4
{[%clk 0:01:22.5]} 25. Nd4 {[%clk 0:01:18.2]} 25... Nxd4 {[%clk 0:01:21.1]} 26.
Bxd4 {[%clk 0:01:19.1]} 26... hxg3 {[%clk 0:01:20.5]} 27. hxg3 {[%clk
0:01:18.6]} 27... Rh2+ {[%clk 0:01:20.1]} 28. Ke3 {[%clk 0:01:17.3]} 28... Rg8
{[%clk 0:01:18.2]} 29. Rg1 {[%clk 0:01:13.9]} 29... Re2+ {[%clk 0:01:05]} 30.
Kf3 {[%clk 0:01:12.8]} 30... Re4 {[%clk 0:00:52.4]} 31. Ba1 {[%clk 0:00:49.7]}
31... Bb7 {[%clk 0:00:45.7]} 32. Kf2 {[%clk 0:00:45.1]} 32... Ra4 {[%clk
0:00:41.3]} 33. Rb2 {[%clk 0:00:41.6]} 33... Rh8 {[%clk 0:00:39.3]} 34. Rc2
{[%clk 0:00:40.3]} 34... Rh2+ {[%clk 0:00:34.9]} 35. Ke3 {[%clk 0:00:40.1]}
35... Rxc2 {[%clk 0:00:30.6]} 36. g4 {[%clk 0:00:39.5]} 36... Ra3+ {[%clk
0:00:25.1]} 37. Kd4 {[%clk 0:00:39.3]} 37... Be4 {[%clk 0:00:18.6]} 38. Rd1
{[%clk 0:00:35.9]} 38... b5 {[%clk 0:00:16]} 39. exf6 {[%clk 0:00:30.6]} 39...
Rc4+ {[%clk 0:00:10.8]} 40. Ke5 {[%clk 0:00:30]} 40... Rc5+ {[%clk 0:00:09.5]}
41. Kd4 {[%clk 0:00:27.9]} 41... Rd5# {[%clk 0:00:08.9]} 0-1

[Event "*** Titled Tuesday Blitz"]
[Site "Chess.com"]
[Date "2020.04.14"]
[Round "5"]
[White "Dixit_Nikhil"]
[Black "indfraeng"]
[Result "0-1"]
[WhiteElo "2431"]
[BlackElo "2257"]
[TimeControl "180+1"]
[EndTime "10:50:54 PDT"]
[Termination "indfraeng won by resignation"]

1. e4 {[%clk 0:03:00.9]} 1... e5 {[%clk 0:02:58.8]} 2. Nf3 {[%clk 0:03:00.8]}
2... Nc6 {[%clk 0:02:58.7]} 3. Nc3 {[%clk 0:03:00.4]} 3... Nf6 {[%clk
0:02:55.5]} 4. d4 {[%clk 0:02:58.6]} 4... exd4 {[%clk 0:02:53.6]} 5. Nxd4 {[%clk
0:02:59.5]} 5... Bc5 {[%clk 0:02:52.3]} 6. Nxc6 {[%clk 0:03:00.4]} 6... dxc6
{[%clk 0:02:51.4]} 7. Qxd8+ {[%clk 0:02:59.6]} 7... Kxd8 {[%clk 0:02:51.1]} 8.
Bg5 {[%clk 0:02:54]} 8... h6 {[%clk 0:02:49]} 9. Bxf6+ {[%clk 0:02:47.9]} 9...
gxf6 {[%clk 0:02:49.9]} 10. O-O-O+ {[%clk 0:02:48.8]} 10... Ke7 {[%clk 0:02:48]}
11. f3 {[%clk 0:02:49.7]} 11... Be6 {[%clk 0:02:46.9]} 12. Bd3 {[%clk
0:02:45.1]} 12... Rad8 {[%clk 0:02:44.6]} 13. a3 {[%clk 0:02:43.2]} 13... Rhg8
{[%clk 0:02:40]} 14. g3 {[%clk 0:02:39.8]} 14... Bh3 {[%clk 0:02:36.8]} 15. Bf1
{[%clk 0:02:33.9]} 15... Be6 {[%clk 0:02:29.8]} 16. Rxd8 {[%clk 0:02:28]} 16...
Rxd8 {[%clk 0:02:28.3]} 17. Bd3 {[%clk 0:02:28.6]} 17... Bh3 {[%clk 0:02:26.6]}
18. Bf1 {[%clk 0:02:01]} 18... Be6 {[%clk 0:02:24.1]} 19. Be2 {[%clk 0:01:38.8]}
19... Be3+ {[%clk 0:02:18.3]} 20. Kb1 {[%clk 0:01:37.4]} 20... Bd4 {[%clk
0:02:17.7]} 21. Rd1 {[%clk 0:01:35.1]} 21... Bxc3 {[%clk 0:02:12.7]} 22. Rxd8
{[%clk 0:01:36]} 22... Kxd8 {[%clk 0:02:12.6]} 23. bxc3 {[%clk 0:01:36.9]} 23...
f5 {[%clk 0:02:12.7]} 24. exf5 {[%clk 0:01:23.1]} 24... Bxf5 {[%clk 0:02:13.6]}
25. Bd3 {[%clk 0:01:24]} 25... Be6 {[%clk 0:02:09.4]} 26. Kc1 {[%clk 0:01:23.5]}
26... Ke7 {[%clk 0:02:09.4]} 27. Kd2 {[%clk 0:01:23.9]} 27... c5 {[%clk
0:02:06.6]} 28. Ke3 {[%clk 0:01:22.8]} 28... b6 {[%clk 0:02:02.3]} 29. g4 {[%clk
0:01:20.5]} 29... Kf6 {[%clk 0:01:58.5]} 30. Kf4 {[%clk 0:01:18.9]} 30... Ke7
{[%clk 0:01:53.6]} 31. h4 {[%clk 0:01:18.3]} 31... f6 {[%clk 0:01:53.4]} 32. Be4
{[%clk 0:01:18]} 32... Kd6 {[%clk 0:01:49.8]} 33. Bf5 {[%clk 0:01:16.1]} 33...
Bf7 {[%clk 0:01:45]} 34. g5 {[%clk 0:00:49.5]} 34... hxg5+ {[%clk 0:01:42.7]}
35. hxg5 {[%clk 0:00:50.4]} 35... fxg5+ {[%clk 0:01:43.3]} 36. Kxg5 {[%clk
0:00:51.3]} 36... a5 {[%clk 0:01:37.9]} 37. f4 {[%clk 0:00:50.8]} 37... b5
{[%clk 0:01:35.8]} 38. Bg6 {[%clk 0:00:48.9]} 38... Bd5 {[%clk 0:01:30.9]} 39.
f5 {[%clk 0:00:46.2]} 39... b4 {[%clk 0:01:30.4]} 40. cxb4 {[%clk 0:00:44.4]}
40... cxb4 {[%clk 0:01:29.5]} 41. a4 {[%clk 0:00:27.7]} 41... b3 {[%clk
0:01:26.7]} 42. cxb3 {[%clk 0:00:26.5]} 42... Bxb3 {[%clk 0:01:27.6]} 43. f6
{[%clk 0:00:27.2]} 43... Bxa4 {[%clk 0:01:13.4]} 44. Bf7 {[%clk 0:00:25.1]}
44... Bd7 {[%clk 0:01:00.9]} 45. Kg6 {[%clk 0:00:20.8]} 45... a4 {[%clk
0:00:54.9]} 46. Kg7 {[%clk 0:00:20.8]} 46... a3 {[%clk 0:00:53.2]} 47. Ba2
{[%clk 0:00:20.6]} 47... Be8 {[%clk 0:00:53.1]} 48. Kf8 {[%clk 0:00:20.1]} 48...
Bh5 {[%clk 0:00:52.6]} 49. f7 {[%clk 0:00:20.3]} 49... c5 {[%clk 0:00:49.1]} 50.
Kg7 {[%clk 0:00:19.6]} 50... Bxf7 {[%clk 0:00:49.1]} 51. Kxf7 {[%clk 0:00:20.5]}
51... Ke5 {[%clk 0:00:49.3]} 52. Ke7 {[%clk 0:00:17.6]} 52... Kd4 {[%clk
0:00:49.1]} 53. Kd6 {[%clk 0:00:18.2]} 53... c4 {[%clk 0:00:49.2]} 54. Kc6
{[%clk 0:00:19.1]} 0-1

[Event "*** Titled Tuesday Blitz"]
[Site "Chess.com"]
[Date "2020.04.14"]
[Round "5"]
[White "KinKaiser"]
[Black "earling8018"]
[Result "1-0"]
[WhiteElo "2486"]
[BlackElo "2036"]
[TimeControl "180+1"]
[EndTime "10:50:56 PDT"]
[Termination "KinKaiser won on time"]

1. d4 {[%clk 0:03:00.9]} 1... d5 {[%clk 0:02:58.9]} 2. Nf3 {[%clk 0:03:01]} 2...
e6 {[%clk 0:02:57.4]} 3. c4 {[%clk 0:03:00.1]} 3... Nf6 {[%clk 0:02:57.2]} 4.
Nc3 {[%clk 0:02:59.8]} 4... Be7 {[%clk 0:02:57]} 5. Bf4 {[%clk 0:02:58.5]} 5...
O-O {[%clk 0:02:55.8]} 6. e3 {[%clk 0:02:58.7]} 6... b6 {[%clk 0:02:56.1]} 7.
Bd3 {[%clk 0:02:47.8]} 7... c5 {[%clk 0:02:55.4]} 8. O-O {[%clk 0:02:46.8]} 8...
Bb7 {[%clk 0:02:53.4]} 9. cxd5 {[%clk 0:02:42.8]} 9... exd5 {[%clk 0:02:32.5]}
10. Ne5 {[%clk 0:02:41.1]} 10... Nbd7 {[%clk 0:02:30.2]} 11. Qf3 {[%clk
0:02:38.5]} 11... h6 {[%clk 0:01:46.5]} 12. Rad1 {[%clk 0:02:33.1]} 12... c4
{[%clk 0:01:44.9]} 13. Bb1 {[%clk 0:02:30.1]} 13... a6 {[%clk 0:01:34.7]} 14.
Nxc4 {[%clk 0:02:26.4]} 14... dxc4 {[%clk 0:01:27.6]} 15. Qxb7 {[%clk
0:02:25.1]} 15... b5 {[%clk 0:01:26.3]} 16. a3 {[%clk 0:02:07.8]} 16... Nb6
{[%clk 0:01:25.7]} 17. Qf3 {[%clk 0:02:05.2]} 17... Qd7 {[%clk 0:01:22]} 18. e4
{[%clk 0:02:05]} 18... a5 {[%clk 0:01:19.9]} 19. e5 {[%clk 0:02:03.7]} 19...
Nfd5 {[%clk 0:01:19.5]} 20. Qe4 {[%clk 0:02:00.1]} 20... f5 {[%clk 0:01:09.2]}
21. exf6 {[%clk 0:01:57.9]} 21... Nxf6 {[%clk 0:01:09.3]} 22. Qg6 {[%clk
0:01:54.1]} 22... b4 {[%clk 0:01:01.4]} 23. Bxh6 {[%clk 0:01:39.1]} 23... Rf7
{[%clk 0:00:47.5]} 24. Ne4 {[%clk 0:01:36.1]} 24... Nbd5 {[%clk 0:00:47.5]} 25.
Ng5 {[%clk 0:01:31.2]} 25... Bd6 {[%clk 0:00:33.2]} 26. Bf5 {[%clk 0:01:20.1]}
26... Nf4 {[%clk 0:00:20.4]} 27. Bxd7 {[%clk 0:01:03.9]} 27... Nxg6 {[%clk
0:00:20.3]} 28. Be6 {[%clk 0:00:54.9]} 28... gxh6 {[%clk 0:00:18.7]} 29. Nxf7
{[%clk 0:00:53.9]} 29... Bf4 {[%clk 0:00:15.7]} 30. g3 {[%clk 0:00:49.3]} 30...
Nf8 {[%clk 0:00:09]} 31. d5 {[%clk 0:00:45.4]} 31... Nxe6 {[%clk 0:00:07.9]} 32.
dxe6 {[%clk 0:00:46]} 32... Bc7 {[%clk 0:00:05.8]} 33. Nxh6+ {[%clk 0:00:42.1]}
33... Kf8 {[%clk 0:00:04.7]} 34. axb4 {[%clk 0:00:39.2]} 34... axb4 {[%clk
0:00:04.2]} 35. Nf5 {[%clk 0:00:38.7]} 35... c3 {[%clk 0:00:03.8]} 36. bxc3
{[%clk 0:00:38.1]} 36... bxc3 {[%clk 0:00:04]} 37. Rc1 {[%clk 0:00:35.8]} 37...
Be5 {[%clk 0:00:03.9]} 38. Rfe1 {[%clk 0:00:34.8]} 38... Ra5 {[%clk 0:00:01]}
39. e7+ {[%clk 0:00:32.8]} 1-0